bitfinex/quotes_SOLUSD_20250621
["timestamp","ask_amount","ask_price","bid_price","bid_amount"]
[1750538363635,19.32964886,138.47,138.43,9.15026864]
[1750538364540,19.32964886,138.47,138.43,16.37379694]
[1750538364713,19.32964886,138.47,138.44,9.15026864]
[1750538365038,167.32964886,138.47,138.44,9.15026864]
[1750538365440,148.68,138.47,138.44,9.15026864]
[1750538366945,148.68,138.47,138.44,16.37318204]
[1750538367102,148.0,138.49,138.46,9.15026864]
[1750538367308,148.0,138.49,138.47,9.15026864]
[1750538367626,0.68,138.47,138.43,9.15026864]
[1750538367831,6.05888531,138.47,138.43,9.15026864]
[1750538368034,15.20915395,138.47,138.43,9.15026864]
[1750538368839,6.05888531,138.47,138.43,9.15026864]
[1750538369042,0.68,138.47,138.44,16.37361449]
[1750538369244,33.85880281,138.48,138.44,16.37361449]
[1750538369540,5.37888531,138.48,138.44,7.22334585]
[1750538369730,5.37888531,138.48,138.45,9.15026864]
[1750538370840,4.37888531,138.48,138.45,9.15026864]
[1750538371139,5.05888531,138.48,138.45,16.3727836]
[1750538371322,18.64964886,138.44,138.38,7.22627142]
[1750538371523,0.68,138.43,138.38,16.37654006]
[1750538371746,0.68,138.43,138.39,9.15026864]
[1750538371952,0.68,138.42,138.38,16.37654006]
[1750538372119,9.83026864,138.42,138.38,16.37654006]
[1750538372318,0.68,138.42,138.38,16.37654006]
[1750538375342,0.68,138.42,138.38,9.15026864]
[1750538375848,0.68,138.43,138.39,9.15026864]
[1750538376526,0.68,138.43,138.39,16.37570885]
[1750538376727,28.4799175,138.44,138.39,16.37570885]
[1750538376928,28.4799175,138.44,138.4,9.15026864]
[1750538377954,28.4799175,138.44,138.4,16.37546345]
[1750538378132,19.32964886,138.44,138.4,16.37546345]
[1750538380635,148.0,138.43,138.4,16.37546345]
[1750538380834,0.68,138.42,138.39,9.15026864]
[1750538381751,0.68,138.42,138.39,16.37609653]
[1750538382955,0.68,138.42,138.33,28.26213762]
[1750538382956,0.69,138.4,138.33,28.26213762]
[1750538383261,6.08102445,138.4,138.36,9.15026864]
[1750538384638,6.08102445,138.4,138.37,16.37726871]
[1750538384833,0.69,138.4,138.35,7.94763912]
[1750538385037,0.69,138.4,138.37,9.15026864]
[1750538385351,157.15026864,138.41,138.37,9.15026864]
[1750538385552,148.0,138.41,138.37,9.15026864]
[1750538385760,5.39345883,138.4,138.37,9.15026864]
[1750538385955,148.0,138.41,138.37,9.15026864]
[1750538386133,148.69,138.41,138.37,9.15026864]
[1750538386535,148.69,138.41,138.38,7.22647781]
[1750538386756,148.0,138.41,138.38,16.37674645]
[1750538387070,148.0,138.41,138.39,9.15026864]
[1750538388351,148.0,138.41,138.4,9.15026864]
[1750538388549,148.0,138.41,138.39,9.15026864]
[1750538388993,14.54542233,138.4,138.36,9.15026864]
[1750538389260,154.08515369,138.39,138.36,9.15026864]
[1750538389458,148.69,138.39,138.36,9.15026864]
[1750538390250,148.69,138.39,138.36,16.37775839]
[1750538390783,0.69,138.38,138.36,16.37775839]
[1750538391077,0.69,138.38,138.33,32.5]
[1750538391078,0.69,138.38,138.35,16.37815267]
[1750538391266,6.08455367,138.38,138.35,16.37815267]
[1750538391468,0.69,138.38,138.35,16.37815267]
[1750538391668,6.08393194,138.38,138.35,16.37815267]
[1750538392878,0.69,138.38,138.35,16.37815267]
[1750538393051,148.69,138.39,138.36,9.15026864]
[1750538395279,148.69,138.39,138.35,16.37815267]
[1750538395665,0.69,138.38,138.35,16.37815267]
[1750538399490,148.69,138.39,138.36,9.15026864]
[1750538400276,148.0,138.39,138.38,9.15026864]
[1750538400475,148.0,138.39,138.35,0.72]
[1750538400680,148.0,138.39,138.37,9.15026864]
[1750538402290,148.0,138.39,138.37,16.37685602]
[1750538403390,148.0,138.39,138.38,9.15026864]
[1750538404468,148.0,138.39,138.38,17.09674645]
[1750538404669,148.69,138.44,138.38,35.16294098]
[1750538404895,6.07692255,138.43,138.4,9.15026864]
[1750538405474,0.69,138.43,138.4,9.15026864]
[1750538405690,6.07771856,138.43,138.4,9.15026864]
[1750538406697,45.33964886,138.45,138.41,16.37518013]
[1750538406994,6.07834493,138.44,138.41,16.37518013]
[1750538407205,6.07834493,138.44,138.41,7.22491149]
[1750538407674,5.38834493,138.43,138.41,7.22491149]
[1750538407871,9.84026864,138.42,138.38,7.22630352]
[1750538408071,0.69,138.41,138.38,16.37657216]
[1750538408299,0.69,138.42,138.39,9.15026864]
[1750538408589,14.53861357,138.43,138.41,16.37518013]
[1750538408590,5.38834493,138.43,138.41,16.37518013]
[1750538409028,6.07834493,138.44,138.41,16.37518013]
[1750538409172,1.5944,138.46,138.43,9.15026864]
[1750538409372,1.5944,138.46,138.42,9.15026864]
[1750538409373,6.07962253,138.45,138.42,9.15026864]
[1750538409580,6.08030318,138.44,138.41,9.15026864]
[1750538409902,0.69,138.44,138.41,9.15026864]
[1750538410397,29.3943175,138.46,138.42,9.15026864]
[1750538410398,6.08056245,138.45,138.42,9.15026864]
[1750538410600,5.39056245,138.44,138.42,9.15026864]
[1750538410799,5.39056245,138.44,138.43,9.15026864]
[1750538411006,6.08059496,138.45,138.43,9.15026864]
[1750538411184,0.69,138.45,138.43,9.15026864]
[1750538411392,5.39059496,138.45,138.42,7.22436747]
[1750538411592,5.39059496,138.45,138.43,9.15026864]
[1750538412903,5.39059496,138.45,138.43,16.37384951]
[1750538413088,0.73,138.46,138.43,16.37384951]
[1750538413290,5.39274693,138.45,138.43,16.37384951]
[1750538413489,5.39357711,138.44,138.43,16.37384951]
[1750538413690,5.39357711,138.45,138.43,16.37384951]
[1750538413893,5.39357711,138.44,138.43,16.37384951]
[1750538414082,5.39357711,138.45,138.43,16.37384951]
[1750538414283,5.39357711,138.44,138.43,16.37384951]
[1750538414593,5.39479382,138.44,138.43,7.22358087]
[1750538416098,5.39479382,138.44,138.42,9.15026864]
[1750538416299,27.7999175,138.44,138.39,16.37622427]
[1750538416523,0.73,138.42,138.39,16.37622427]
[1750538416806,27.7999175,138.44,138.39,16.37622427]
[1750538417106,5.39681813,138.43,138.4,9.15026864]
[1750538417315,5.39681813,138.42,138.4,9.15026864]
[1750538417522,18.64964886,138.44,138.4,16.37521301]
[1750538417814,5.39671053,138.43,138.4,16.37521301]
[1750538418014,5.39671053,138.42,138.4,16.37521301]
[1750538418218,19.37964886,138.44,138.4,16.37521301]
[1750538418219,0.73,138.44,138.41,9.15026864]
[1750538418516,6.12620628,138.43,138.4,9.15026864]
[1750538418685,6.12620628,138.43,138.39,16.37600918]
[1750538418686,6.12620628,138.42,138.39,16.37600918]
[1750538418885,0.73,138.42,138.39,16.37600918]
[1750538419084,0.73,138.42,138.38,16.37653612]
[1750538419288,0.73,138.4,138.38,7.22626748]
[1750538419514,0.73,138.41,138.38,7.22626748]
[1750538419681,5.39740551,138.4,138.38,7.22626748]
[1750538419885,0.73,138.41,138.38,7.22626748]
[1750538420086,5.39730627,138.4,138.38,7.22626748]
[1750538420284,5.39745507,138.39,138.38,7.22626748]
[1750538420489,6.12745507,138.4,138.38,7.22626748]
[1750538420687,5.39745507,138.39,138.38,7.22626748]
[1750538421099,5.39745507,138.39,138.37,16.37707247]
[1750538421495,0.73,138.4,138.37,16.37707247]
[1750538421799,5.39735861,138.39,138.37,16.37707247]
[1750538422803,0.73,138.4,138.37,16.37707247]
[1750538423711,9.15026864,138.42,138.37,16.37707247]
[1750538424046,6.127066,138.41,138.37,16.37707247]
[1750538424188,5.397066,138.4,138.37,16.37707247]
[1750538424389,0.73,138.41,138.37,16.37707247]
[1750538424591,5.39691134,138.4,138.37,16.37707247]
[1750538424901,0.73,138.41,138.37,16.37707247]
[1750538425099,6.127307,138.4,138.37,16.37707247]
[1750538425302,0.73,138.4,138.37,16.37707247]
[1750538425922,5.39753999,138.39,138.37,16.37707247]
[1750538426104,5.39753999,138.4,138.37,16.37707247]
[1750538426306,5.39753999,138.39,138.37,16.37707247]
[1750538426602,6.12753999,138.4,138.37,16.37707247]
[1750538426789,7.22440149,138.42,138.37,16.37707247]
[1750538426790,5.39753999,138.39,138.38,9.15026864]
[1750538426989,5.39753999,138.41,138.38,9.15026864]
[1750538427217,5.39753999,138.4,138.38,9.15026864]
[1750538427414,9.88026864,138.42,138.38,9.15026864]
[1750538427623,5.39768725,138.41,138.38,9.15026864]
[1750538427920,5.39768725,138.4,138.38,9.15026864]
[1750538428131,9.15026864,138.42,138.38,9.15026864]
[1750538428322,6.12740052,138.41,138.38,9.15026864]
[1750538428624,5.39740052,138.4,138.38,9.15026864]
[1750538428808,5.39758094,138.39,138.38,9.15026864]
[1750538429306,5.39758094,138.39,138.38,16.37674645]
[1750538429704,5.39758094,138.4,138.38,16.37674645]
[1750538429905,5.39758094,138.39,138.38,16.37674645]
[1750538430221,5.39758094,138.4,138.38,16.37674645]
[1750538430523,0.73,138.41,138.38,16.37674645]
[1750538430702,5.39723563,138.4,138.38,16.37674645]
[1750538430900,0.73,138.41,138.38,16.37674645]
[1750538431112,5.39716514,138.4,138.38,16.37674645]
[1750538431425,0.73,138.41,138.38,16.37674645]
[1750538431728,5.39718727,138.4,138.38,16.37674645]
[1750538433230,5.39718727,138.4,138.39,9.15026864]
[1750538433526,5.39718727,138.42,138.39,9.89026864]
[1750538433725,5.39718727,138.41,138.39,9.15026864]
[1750538434034,0.73,138.43,138.4,9.15026864]
[1750538434228,5.39712183,138.42,138.4,9.15026864]
[1750538434424,5.39654398,138.42,138.41,9.15026864]
[1750538434625,6.12654398,138.44,138.41,9.15026864]
[1750538434797,5.39654398,138.43,138.4,0.74]
[1750538435127,26.0,138.45,138.42,9.15026864]
[1750538435297,5.39632628,138.44,138.42,16.37440399]
[1750538435499,5.39632628,138.43,138.42,16.37440399]
[1750538436327,5.39632628,138.44,138.42,16.37440399]
[1750538436536,18.64964886,138.46,138.43,9.15026864]
[1750538436821,5.39555817,138.45,138.43,9.15026864]
[1750538437128,5.39555817,138.44,138.43,9.15026864]
[1750538437495,5.39555817,138.45,138.43,16.37413629]
[1750538437721,5.39555817,138.44,138.43,16.37413629]
[1750538437928,5.39555817,138.46,138.43,16.37413629]
[1750538438105,5.39555817,138.45,138.43,16.37413629]
[1750538438419,50.69376188,138.47,138.43,16.37413629]
[1750538438622,6.1248224,138.46,138.43,16.37413629]
[1750538438823,5.3948224,138.45,138.43,16.37413629]
[1750538439008,0.73,138.46,138.43,16.37413629]
[1750538439207,6.12491088,138.45,138.43,7.22386765]
[1750538439526,5.39491088,138.44,138.43,7.22386765]
[1750538440023,0.73,138.43,138.4,9.15026864]
[1750538440212,9.15026864,138.45,138.4,16.37570216]
[1750538440520,6.12565129,138.44,138.41,9.15026864]
[1750538440721,5.39565129,138.43,138.41,9.15026864]
[1750538441024,15.27591993,138.45,138.41,9.15026864]
[1750538441231,6.12565129,138.44,138.41,9.15026864]
[1750538441414,5.39565129,138.43,138.4,16.37570216]
[1750538441615,5.39565129,138.42,138.4,16.37570216]
[1750538441811,6.14565129,138.42,138.39,9.15026864]
[1750538442019,0.75,138.42,138.38,16.37674645]
[1750538442222,0.75,138.4,138.37,16.37704331]
[1750538442839,9.15026864,138.41,138.37,7.22677467]
[1750538443040,0.75,138.39,138.37,7.22677467]
[1750538444543,0.75,138.39,138.35,7.2276273]
[1750538444726,5.40033658,138.38,138.35,16.37789594]
[1750538444932,0.75,138.39,138.36,9.15026864]
[1750538446850,5.39996245,138.38,138.36,16.37735957]
[1750538447048,0.75,138.39,138.36,16.37735957]
[1750538447663,5.39985932,138.38,138.35,16.37812345]
[1750538447839,9.15026864,138.39,138.35,16.37812345]
[1750538448019,5.39972973,138.38,138.36,9.15026864]
[1750538448221,9.15026864,138.4,138.36,9.15026864]
[1750538448452,6.1497929,138.39,138.36,9.15026864]
[1750538448636,5.3997929,138.38,138.36,16.37770696]
[1750538448837,0.75,138.39,138.36,9.15026864]
[1750538449027,5.39937586,138.38,138.35,16.37811823]
[1750538449233,5.39937586,138.37,138.35,16.37811823]
[1750538449435,0.75,138.38,138.35,16.37811823]
[1750538450057,16.37626165,138.39,138.34,7.22856729]
[1750538450226,0.75,138.37,138.34,16.37883593]
[1750538451250,6.14804752,138.37,138.34,16.37883593]
[1750538451447,6.14739296,138.37,138.34,16.37883593]
[1750538451755,6.14739296,138.37,138.31,18.0752124]
[1750538451756,9.90026864,138.35,138.31,9.15026864]
[1750538452057,5.39745765,138.34,138.3,16.38081181]
[1750538452260,0.75,138.33,138.3,16.38081181]
[1750538452870,6.14835933,138.33,138.3,9.15026864]
[1750538453029,5.39835933,138.33,138.32,9.15026864]
[1750538453227,5.39835933,138.35,138.32,9.89026864]
[1750538453432,5.39835933,138.37,138.34,9.15026864]
[1750538453732,6.14835933,138.36,138.33,9.15026864]
[1750538453958,5.39835933,138.35,138.32,9.15026864]
[1750538454260,6.14835933,138.35,138.32,9.15026864]
[1750538455055,6.14835933,138.34,138.31,9.15026864]
[1750538455358,5.39835933,138.33,138.3,9.15026864]
[1750538455559,9.90026864,138.34,138.3,9.15026864]
[1750538455760,15.29862797,138.34,138.3,9.15026864]
[1750538456059,9.90026864,138.34,138.3,9.15026864]
[1750538456242,15.29862797,138.34,138.3,9.15026864]
[1750538457038,0.75,138.33,138.3,9.15026864]
[1750538457246,0.75,138.33,138.29,16.3812645]
[1750538457744,0.75,138.33,138.28,0.74]
[1750538457745,0.75,138.31,138.28,7.23152685]
[1750538457963,0.75,138.31,138.28,16.38179549]
[1750538458348,0.75,138.31,138.28,9.15026864]
[1750538458660,0.75,138.31,138.28,16.38194048]
[1750538459255,9.90026864,138.3,138.27,6.48]
[1750538459431,0.75,138.3,138.26,9.15026864]
[1750538460141,0.75,138.3,138.27,7.23208029]
[1750538460343,0.75,138.3,138.26,16.38280353]
[1750538460554,16.38098184,138.3,138.26,9.15026864]
[1750538460761,0.75,138.29,138.26,9.15026864]
[1750538461456,18.64964886,138.31,138.27,9.15026864]
[1750538461663,6.8532,138.33,138.25,7.97309987]
[1750538461664,26.0,138.33,138.3,9.15026864]
[1750538461846,24.04800819,138.34,138.31,9.15026864]
[1750538462046,18.64964886,138.34,138.31,9.15026864]
[1750538462234,24.04800819,138.34,138.31,9.15026864]
[1750538462436,5.39835933,138.34,138.32,9.15026864]
[1750538462657,24.04800819,138.37,138.33,9.15026864]
[1750538462841,24.04800819,138.37,138.34,9.15026864]
[1750538462842,19.39964886,138.37,138.34,9.15026864]
[1750538463043,19.39964886,138.37,138.33,9.15026864]
[1750538463253,24.79800819,138.37,138.33,9.15026864]
[1750538463650,40.42564011,138.37,138.33,9.15026864]
[1750538463861,0.75,138.36,138.33,9.15026864]
[1750538464739,0.75,138.36,138.32,16.37962308]
[1750538465446,0.75,138.36,138.33,9.15026864]
[1750538466243,0.75,138.34,138.3,9.15026864]
[1750538466540,19.39964886,138.35,138.31,9.15026864]
[1750538466754,28.5499175,138.35,138.31,16.38030921]
[1750538467160,19.39964886,138.35,138.31,16.38030921]
[1750538467965,18.39964886,138.35,138.31,16.38030921]
[1750538471565,24.02516449,138.37,138.34,9.15026864]
[1750538471776,0.69,138.36,138.33,9.15026864]
[1750538472061,40.39996066,138.37,138.32,9.15026864]
[1750538472262,0.69,138.35,138.32,9.15026864]
[1750538472467,0.69,138.34,138.3,16.38092662]
[1750538472666,31.24969202,138.37,138.31,9.15026864]
[1750538472667,9.15026864,138.36,138.31,9.15026864]
[1750538472970,0.69,138.35,138.32,9.15026864]
[1750538475856,40.39989989,138.37,138.32,16.37982977]
[1750538476169,0.69,138.36,138.32,9.15026864]
[1750538477047,9.15026864,138.36,138.31,9.83026864]
[1750538477266,9.84026864,138.36,138.32,9.15026864]
[1750538477974,9.84026864,138.36,138.32,16.37979768]
[1750538478773,17.06783687,138.36,138.32,7.22952904]
[1750538479565,16.37783687,138.36,138.31,17.06030197]
[1750538479765,0.69,138.34,138.31,16.38030197]
[1750538480069,9.84026864,138.35,138.31,16.38030197]
[1750538480954,0.69,138.34,138.31,7.23003333]
[1750538481176,0.69,138.33,138.3,7.23050429]
[1750538482477,0.69,138.33,138.3,9.15026864]
[1750538482865,27.7999175,138.34,138.3,9.15026864]
[1750538483070,28.4899175,138.34,138.3,9.15026864]
[1750538483252,19.33964886,138.34,138.31,9.15026864]
[1750538483575,10.72406864,138.35,138.31,9.15026864]
[1750538483776,0.69,138.34,138.31,9.15026864]
[1750538484385,9.84026864,138.32,138.28,22.861905]
[1750538484565,24.02250513,138.33,138.3,9.15026864]
[1750538485263,24.71250513,138.33,138.3,9.15026864]
[1750538486154,24.71250513,138.33,138.3,16.38089264]
[1750538486354,24.02250513,138.33,138.3,16.38089264]
[1750538487978,5.37285627,138.33,138.31,9.15026864]
[1750538488183,5.37285627,138.34,138.32,9.83026864]
[1750538488376,15.20169685,138.35,138.33,9.83026864]
[1750538488556,20.57455312,138.35,138.34,9.15026864]
[1750538489065,15.20169685,138.35,138.33,9.15026864]
[1750538489475,20.57455312,138.35,138.33,9.15026864]
[1750538489787,15.20169685,138.35,138.33,9.15026864]
[1750538489966,21.26455312,138.35,138.32,9.15026864]
[1750538490167,5.37285627,138.34,138.33,9.15026864]
[1750538490485,15.20169685,138.35,138.33,9.83026864]
[1750538490684,15.20169685,138.35,138.34,9.15026864]
[1750538490982,20.60067882,138.35,138.34,9.15026864]
[1750538491170,15.20169685,138.35,138.34,9.15026864]
[1750538491654,20.6004524,138.35,138.33,9.15026864]
[1750538491855,5.40075927,138.34,138.33,9.15026864]
[1750538492067,5.40075927,138.34,138.33,16.37935849]
[1750538492785,5.40075927,138.34,138.32,16.37975196]
[1750538493085,5.40075927,138.33,138.32,16.37975196]
[1750538493485,6.09075927,138.33,138.3,9.15026864]
[1750538493782,9.84026864,138.34,138.3,9.15026864]
[1750538493983,5.40505123,138.33,138.3,9.15026864]
[1750538494181,9.84026864,138.34,138.3,9.15026864]
[1750538494482,5.40505196,138.33,138.3,9.15026864]
[1750538494686,5.40505196,138.32,138.29,7.23095143]
[1750538494890,5.40505196,138.31,138.29,16.38122007]
[1750538495074,0.69,138.33,138.29,16.38122007]
[1750538495416,5.40700374,138.32,138.31,9.15026864]
[1750538496273,24.35196549,138.35,138.31,16.38040384]
[1750538496469,5.4079348,138.34,138.31,16.38040384]
[1750538496681,5.4079348,138.33,138.31,16.38040384]
[1750538496878,5.4079348,138.32,138.31,16.38040384]
[1750538497470,5.4079348,138.32,138.31,7.2301352]
[1750538497802,24.35196549,138.35,138.31,16.38040384]
[1750538497959,5.40885974,138.34,138.33,9.15026864]
[1750538498288,5.40885974,138.34,138.31,16.38030495]
[1750538498474,5.40885974,138.33,138.31,16.38030495]
[1750538498674,0.69,138.34,138.31,16.38030495]
[1750538498878,5.40891523,138.33,138.31,16.38030495]
[1750538499122,0.69,138.34,138.31,16.38030495]
[1750538499410,5.40889369,138.33,138.31,16.38030495]
[1750538499569,172.35196549,138.35,138.31,16.38030495]
[1750538499770,6.0989475,138.34,138.31,16.38030495]
[1750538499991,5.4089475,138.33,138.31,7.23003631]
[1750538500195,5.4089475,138.32,138.31,7.23003631]
[1750538501373,5.4089475,138.32,138.3,16.38078896]
[1750538501578,5.4089475,138.31,138.3,7.23052032]
[1750538502375,5.4089475,138.31,138.29,16.38126377]
[1750538502570,0.7,138.32,138.29,16.38126377]
[1750538502775,6.10955022,138.31,138.28,22.86189001]
[1750538502990,5.40955022,138.3,138.28,22.86189001]
[1750538503303,0.7,138.31,138.28,6.48]
[1750538503592,5.40990716,138.3,138.28,22.86197242]
[1750538503797,148.0,138.32,138.28,22.86197242]
[1750538503992,5.41009588,138.31,138.29,9.15026864]
[1750538504192,148.0,138.32,138.29,0.72]
[1750538504367,5.4098486,138.31,138.29,9.15026864]
[1750538504567,5.4098486,138.3,138.29,16.38144949]
[1750538506785,5.4098486,138.3,138.28,13.7116813]
[1750538506984,5.4098486,138.29,138.28,22.86194994]
[1750538507182,5.4098486,138.29,138.28,7.2316813]
[1750538507374,5.4098486,138.29,138.28,16.38194994]
[1750538507696,5.4098486,138.29,138.27,16.38235883]
[1750538507886,9.85026864,138.31,138.27,16.38235883]
[1750538507887,9.15026864,138.31,138.27,16.38235883]
[1750538508197,9.15026864,138.31,138.25,1.5352]
[1750538508198,9.85026864,138.29,138.25,9.15026864]
[1750538508501,5.41352693,138.28,138.26,9.15026864]
[1750538508704,5.41352693,138.27,138.24,0.72]
[1750538509001,9.15026864,138.29,138.25,9.15026864]
[1750538509203,5.41194093,138.28,138.25,16.38343505]
[1750538509406,5.41194093,138.27,138.25,16.38343505]
[1750538509698,9.15026864,138.29,138.25,16.38343505]
[1750538509875,6.10978548,138.28,138.25,16.38343505]
[1750538510071,5.40978548,138.27,138.25,16.38343505]
[1750538510288,9.15026864,138.29,138.24,7.23379629]
[1750538510508,5.40816438,138.28,138.26,9.15026864]
[1750538510690,5.40816438,138.27,138.26,9.15026864]
[1750538511283,5.40816438,138.29,138.26,9.15026864]
[1750538511607,5.40816438,138.28,138.26,9.15026864]
[1750538511800,171.56679268,138.3,138.26,9.15026864]
[1750538511999,15.2571273,138.29,138.25,9.15026864]
[1750538512200,5.40685866,138.28,138.25,9.15026864]
[1750538512405,0.7,138.29,138.25,16.38321581]
[1750538512603,5.4055376,138.28,138.25,16.38321581]
[1750538512786,0.7,138.28,138.25,9.15026864]
[1750538513111,5.40574313,138.27,138.24,16.38383571]
[1750538513281,5.40404767,138.27,138.24,16.38383571]
[1750538513482,6.10404767,138.27,138.24,7.23356707]
[1750538513686,9.85026864,138.27,138.24,7.23356707]
[1750538513892,0.7,138.26,138.24,7.23356707]
[1750538514135,0.7,138.26,138.23,6.46]
[1750538514407,0.7,138.25,138.22,16.38491631]
[1750538514609,9.15026864,138.25,138.21,7.23518858]
[1750538514794,0.7,138.23,138.2,7.23566452]
[1750538514993,6.10195613,138.23,138.2,7.23566452]
[1750538515398,0.7,138.23,138.2,16.38593316]
[1750538515783,14.55222477,138.24,138.2,7.23566452]
[1750538515986,5.40195613,138.24,138.2,17.10593316]
[1750538516213,5.40195613,138.24,138.21,9.15026864]
[1750538516413,23.39630146,138.25,138.22,7.234843]
[1750538516414,29.49825759,138.25,138.22,7.234843]
[1750538516607,24.09630146,138.25,138.22,7.234843]
[1750538516909,29.49825759,138.25,138.22,7.234843]
[1750538517110,24.09630146,138.25,138.21,16.38542717]
[1750538517313,9.15026864,138.24,138.21,7.23515853]
[1750538517486,0.7,138.24,138.21,7.23515853]
[1750538517688,9.85026864,138.24,138.21,7.23515853]
[1750538518386,9.15026864,138.24,138.2,7.23566188]
[1750538518790,0.7,138.23,138.2,7.23566188]
[1750538519218,0.7,138.22,138.2,7.23566188]
[1750538519616,9.85026864,138.23,138.2,7.23566188]
[1750538520001,148.0,138.24,138.18,16.38720596]
[1750538520002,0.7,138.21,138.18,16.38720596]
[1750538520402,9.85026864,138.21,138.17,7.23746109]
[1750538520621,0.7,138.2,138.17,7.23746109]
[1750538520791,9.15026864,138.21,138.17,34.48138247]
[1750538520996,148.0,138.22,138.18,9.15026864]
[1750538521204,148.0,138.22,138.19,9.15026864]
[1750538521800,148.7,138.22,138.19,9.15026864]
[1750538521998,148.0,138.22,138.19,9.15026864]
[1750538522198,148.7,138.22,138.18,9.15026864]
[1750538522723,157.85026864,138.22,138.19,7.23641363]
[1750538523726,148.7,138.22,138.19,9.15026864]
[1750538524140,14.24603282,138.25,138.19,9.15026864]
[1750538524323,14.94603282,138.25,138.22,9.15026864]
[1750538524613,0.7,138.24,138.21,9.15026864]
[1750538525524,14.24603282,138.25,138.22,9.15026864]
[1750538525726,14.24603282,138.25,138.23,7.23431961]
[1750538526219,0.7,138.24,138.2,9.15026864]
[1750538526425,9.85026864,138.24,138.2,9.15026864]
[1750538527620,0.7,138.24,138.21,9.15026864]
[1750538528328,23.39630146,138.25,138.21,9.15026864]
[1750538528513,24.09630146,138.25,138.21,9.15026864]
[1750538529331,24.09630146,138.25,138.22,7.234843]
[1750538529534,14.24603282,138.25,138.22,16.38511164]
[1750538530015,14.94603282,138.25,138.22,16.38511164]
[1750538530823,0.7,138.24,138.22,7.234843]
[1750538533340,0.7,138.24,138.21,9.15026864]
[1750538533510,23.39630146,138.25,138.21,9.15026864]
[1750538533706,14.24603282,138.25,138.22,9.15026864]
[1750538534640,14.98603282,138.25,138.22,9.15026864]
[1750538536514,14.98603282,138.25,138.23,7.23431961]
[1750538542040,14.24603282,138.25,138.23,16.38458825]
[1750538542341,14.24603282,138.25,138.24,9.15026864]
[1750538542524,14.24603282,138.25,138.22,7.23468611]
[1750538542837,24.13630146,138.25,138.22,7.23468611]
[1750538543043,14.98603282,138.25,138.22,16.38495475]
[1750538543252,14.24603282,138.25,138.22,16.38495475]
[1750538544345,19.63635615,138.25,138.22,16.38495475]
[1750538545343,14.24603282,138.25,138.23,9.15026864]
[1750538545518,14.24603282,138.25,138.24,9.15026864]
[1750538546336,19.64071459,138.25,138.24,7.23379629]
[1750538546944,20.38071459,138.25,138.23,16.38434524]
[1750538547129,20.38071459,138.25,138.23,7.2340766]
[1750538547631,14.98603282,138.25,138.23,7.2340766]
[1750538548352,0.74,138.24,138.18,44.09233897]
[1750538548645,20.3825054,138.25,138.21,9.15026864]
[1750538549163,14.24603282,138.25,138.23,9.15026864]
[1750538550555,14.24603282,138.25,138.24,7.23379629]
[1750538552851,14.24603282,138.25,138.24,17.09406493]
[1750538553423,14.24603282,138.25,138.24,16.38406493]
[1750538554753,14.24603282,138.25,138.24,17.09406493]
[1750538555860,14.24603282,138.25,138.24,52.24433357]
[1750538560440,148.74,138.32,138.24,125.14745465]
[1750538560645,148.0,138.32,138.31,9.15026864]
[1750538560861,0.74,138.34,138.31,9.15026864]
[1750538561051,0.74,138.34,138.32,9.15026864]
[1750538561639,0.74,138.34,138.33,7.22908985]
[1750538561941,9.15026864,138.34,138.31,7.22969012]
[1750538562143,0.68,138.33,138.31,7.22969012]
[1750538562339,0.68,138.33,138.31,16.37995876]
[1750538563962,148.68,138.35,138.32,9.15026864]
[1750538564871,148.68,138.35,138.33,9.15026864]
[1750538565170,148.68,138.35,138.34,9.15026864]
[1750538565171,148.0,138.35,138.34,9.15026864]
[1750538565566,148.0,138.35,138.33,9.15026864]
[1750538565749,148.0,138.35,138.34,16.37883593]
[1750538566484,0.68,138.34,138.33,7.22891575]
[1750538566774,148.68,138.35,138.33,7.22891575]
[1750538570753,0.68,138.34,138.32,7.22944342]
[1750538571573,0.68,138.34,138.32,16.37971206]
[1750538572375,148.68,138.35,138.32,16.37971206]
[1750538574572,148.68,138.35,138.33,9.15026864]
[1750538575068,148.68,138.35,138.32,7.22944342]
[1750538575273,148.68,138.35,138.32,16.37971206]
[1750538575951,0.68,138.34,138.32,16.37971206]
[1750538576672,0.68,138.34,138.29,25.30896804]
[1750538576978,0.68,138.34,138.3,9.15026864]
[1750538576979,9.15026864,138.34,138.3,9.15026864]
[1750538577280,0.68,138.33,138.31,9.15026864]
[1750538578177,0.68,138.33,138.31,16.3799039]
[1750538578763,0.68,138.34,138.3,9.15026864]
[1750538578958,157.15026864,138.35,138.3,9.15026864]
[1750538579363,9.83026864,138.34,138.3,9.15026864]